bitfinex/quotes_SOLUSD_20250829
["timestamp","ask_amount","ask_price","bid_price","bid_amount"]
[1756464244087,83.22040338,208.45,208.44,0.72]
[1756464244593,87.25682194,208.45,208.44,0.72]
[1756464245307,52.248748,208.45,208.44,0.72]
[1756464246200,68.86391443,208.45,208.44,0.72]
[1756464246400,64.82749587,208.45,208.44,0.72]
[1756464247090,52.248748,208.45,208.44,0.72]
[1756464247295,39.64,208.45,208.44,0.72]
[1756464249792,61.84423337,208.45,208.44,0.03]
[1756464249993,65.88065193,208.45,208.44,0.03]
[1756464251000,65.88065193,208.45,208.44,0.72]
[1756464251809,44.468172,208.45,208.44,0.72]
[1756464252114,39.64,208.45,208.44,0.72]
[1756464252315,4.03641856,208.49,208.44,13.29874787]
[1756464252500,41.483863,208.48,208.45,0.69]
[1756464253801,58.85927747,208.48,208.46,0.69]
[1756464254002,58.85927747,208.48,208.44,0.03]
[1756464254197,58.85927747,208.48,208.45,0.69]
[1756464254616,12.57874787,208.46,208.44,0.03]
[1756464254925,52.13874787,208.45,208.44,0.03]
[1756464255432,54.06279687,208.45,208.44,0.03]
[1756464256031,54.06279687,208.45,208.44,0.72]
[1756464256032,41.484049,208.45,208.44,0.72]
[1756464256326,39.56,208.45,208.44,0.72]
[1756464258307,71.22165538,208.45,208.44,0.03]
[1756464259540,70.53165538,208.45,208.44,0.03]
[1756464260026,57.95290751,208.45,208.44,0.03]
[1756464260200,70.53165538,208.45,208.44,0.03]
[1756464262613,72.45607438,208.45,208.44,0.03]
[1756464264500,1.924419,208.45,208.44,0.72]
[1756464264707,39.5,208.45,208.44,0.72]
[1756464265315,52.07874787,208.45,208.44,0.72]
[1756464265513,4.85666622,208.48,208.44,0.72]
[1756464265719,17.37586807,208.46,208.44,0.72]
[1756464265910,21.41614877,208.46,208.44,0.72]
[1756464266626,21.41614877,208.46,208.45,0.69]
[1756464267522,8.8374009,208.46,208.45,0.69]
[1756464267726,8.8374009,208.46,208.44,0.03]
[1756464268034,39.48,208.45,208.44,0.03]
[1756464268431,4.0402807,208.46,208.45,0.69]
[1756464268729,39.48,208.46,208.45,0.69]
[1756464269917,4.0402807,208.47,208.45,0.69]
[1756464270122,39.46,208.46,208.45,0.69]
[1756464271322,52.03874787,208.46,208.44,0.03]
[1756464271516,12.57874787,208.45,208.44,0.03]
[1756464272739,17.37606137,208.45,208.44,0.03]
[1756464274142,31.67165538,208.45,208.44,0.03]
[1756464274925,33.65607438,208.45,208.44,0.03]
[1756464276241,32.95607438,208.45,208.44,0.03]
[1756464278547,33.65607438,208.45,208.44,0.03]
[1756464278920,39.03854302,208.45,208.44,0.03]
[1756464279121,38.33854302,208.45,208.44,0.03]
[1756464281053,38.3474569,208.45,208.44,0.03]
[1756464281752,73.05607438,208.45,208.44,0.03]
[1756464281945,72.35607438,208.45,208.44,0.03]
[1756464282142,73.05607438,208.45,208.44,0.03]
[1756464282352,72.35607438,208.45,208.44,0.03]
[1756464283069,73.05607438,208.45,208.44,0.03]
[1756464286448,39.59559401,208.43,208.42,0.03]
[1756464286641,96.33211571,208.43,208.42,0.03]
[1756464286836,97.03211571,208.43,208.42,0.03]
[1756464287261,98.95699771,208.43,208.42,0.03]
[1756464290264,13.59559401,208.42,208.41,0.03]
[1756464290591,26.17434188,208.42,208.41,0.03]
[1756464290756,26.87434188,208.42,208.41,0.03]
[1756464291152,39.59559401,208.4,208.39,0.1]
[1756464291363,44.39497968,208.36,208.35,0.1]
[1756464291571,100.35426196,208.36,208.35,0.1]
[1756464291953,107.20236377,208.36,208.35,0.1]
[1756464292348,101.81498455,208.36,208.35,0.1]
[1756464292547,107.20236377,208.36,208.35,0.1]
[1756464293248,101.81498455,208.36,208.35,0.1]
[1756464293964,101.81498455,208.36,208.35,1e-08]
[1756464294170,49.19623668,208.36,208.35,0.69000001]
[1756464294373,101.11498455,208.36,208.35,0.69000001]
[1756464294579,101.11498455,208.36,208.35,1e-08]
[1756464295978,61.77498455,208.36,208.35,1e-08]
[1756464296183,8.83245259,208.37,208.35,0.69000001]
[1756464296476,39.32,208.36,208.35,0.69000001]
[1756464296685,51.89874787,208.36,208.35,1e-08]
[1756464297268,56.69813354,208.36,208.35,0.69000001]
[1756464297465,26.0,208.37,208.35,0.69000001]
[1756464297655,13.59559401,208.39,208.35,0.69000001]
[1756464297656,39.32,208.36,208.35,0.69000001]
[1756464298972,4.79898026,208.38,208.35,0.69000001]
[1756464299277,39.32,208.37,208.35,0.69000001]
[1756464300055,44.11920097,208.37,208.35,1e-08]
[1756464300258,26.17434188,208.36,208.35,1e-08]
[1756464300456,4.03327805,208.37,208.35,1e-08]
[1756464300767,12.578748,208.37,208.35,1e-08]
[1756464300968,39.3,208.36,208.35,1e-08]
[1756464301283,51.87874787,208.36,208.35,1e-08]
[1756464301585,39.3,208.36,208.35,0.72000001]
[1756464302084,56.67813354,208.36,208.35,0.72000001]
[1756464302288,17.37795522,208.37,208.35,0.72000001]
[1756464302489,39.3,208.36,208.35,1e-08]
[1756464303191,39.3,208.36,208.35,0.72000001]
[1756464304070,44.09938567,208.36,208.35,0.72000001]
[1756464304582,4.79916306,208.37,208.35,0.72000001]
[1756464304787,39.28,208.36,208.35,0.72000001]
[1756464306077,70.25372755,208.36,208.35,1e-08]
[1756464306269,70.91372755,208.36,208.35,1e-08]
[1756464306475,74.9470056,208.36,208.35,1e-08]
[1756464306769,70.91372755,208.36,208.35,1e-08]
[1756464307277,83.49247455,208.36,208.35,1e-08]
[1756464308466,83.55247455,208.36,208.35,1e-08]
[1756464309194,87.58342631,208.36,208.35,1e-08]
[1756464309604,83.55247455,208.36,208.35,1e-08]
[1756464310581,44.27247455,208.36,208.35,1e-08]
[1756464310900,86.8829193,208.36,208.35,1e-08]
[1756464311486,17.43813354,208.36,208.35,0.72000001]
[1756464311693,0.06,208.36,208.35,0.72000001]
[1756464312000,39.3,208.36,208.35,0.72000001]
[1756464312201,0.06,208.36,208.35,0.72000001]
[1756464312401,39.3,208.36,208.35,0.72000001]
[1756464313608,0.06,208.36,208.35,0.72000001]
[1756464313787,39.3,208.36,208.35,0.72000001]
[1756464314504,44.09938567,208.36,208.35,0.72000001]
[1756464315411,56.67813354,208.36,208.35,1e-08]
[1756464316413,44.09938567,208.36,208.35,1e-08]
[1756464316614,56.67813354,208.36,208.35,1e-08]
[1756464316977,56.67813354,208.36,208.35,0.72000001]
[1756464317204,44.09938567,208.36,208.35,0.72000001]
[1756464317697,39.28,208.36,208.35,0.72000001]
[1756464317887,44.07938567,208.36,208.35,0.72000001]
[1756464319204,56.65813354,208.36,208.35,0.72000001]
[1756464319906,56.65813354,208.36,208.35,1e-08]
[1756464320402,96.25372755,208.36,208.35,1e-08]
[1756464320706,98.17898055,208.36,208.35,1e-08]
[1756464321006,58.95898055,208.36,208.35,1e-08]
[1756464321312,70.03938567,208.36,208.35,0.72000001]
[1756464322008,65.24,208.36,208.35,0.72000001]
[1756464323224,82.61813354,208.36,208.35,1e-08]
[1756464324005,100.25306553,208.36,208.35,1e-08]
[1756464324307,70.87372755,208.36,208.35,1e-08]
[1756464324607,72.79907155,208.36,208.35,1e-08]
[1756464325496,70.87372755,208.36,208.35,1e-08]
[1756464326123,18.45497968,208.36,208.35,1e-08]
[1756464326403,43.26351873,208.36,208.35,0.72000001]
[1756464327193,48.0629044,208.36,208.35,0.72000001]
[1756464327412,48.0629044,208.36,208.35,1e-08]
[1756464327609,60.64165227,208.36,208.35,1e-08]
[1756464327997,48.0629044,208.36,208.35,0.72000001]
[1756464328594,48.0629044,208.36,208.35,1e-08]
[1756464328595,70.19372755,208.36,208.35,1e-08]
[1756464328796,57.59497968,208.36,208.35,0.72000001]
[1756464329312,43.99938567,208.36,208.35,0.72000001]
[1756464329625,82.57813354,208.36,208.35,0.72000001]
[1756464330320,96.17372755,208.36,208.35,1e-08]
[1756464330490,83.59497968,208.36,208.35,1e-08]
[1756464330689,30.85938567,208.36,208.35,1e-08]
[1756464330909,69.99938567,208.36,208.35,0.66000001]
[1756464331803,82.57813354,208.36,208.35,0.66000001]
[1756464332000,82.57813354,208.36,208.35,1e-08]
[1756464332312,69.99938567,208.36,208.35,0.66000001]
[1756464332913,96.17372755,208.36,208.35,1e-08]
[1756464333119,96.83372755,208.36,208.35,1e-08]
[1756464333420,96.17372755,208.36,208.35,1e-08]
[1756464333610,96.83372755,208.36,208.35,1e-08]
[1756464334320,96.17372755,208.36,208.35,1e-08]
[1756464335432,57.03372755,208.36,208.35,1e-08]
[1756464335604,96.15372755,208.36,208.35,1e-08]
[1756464336426,101.54110677,208.36,208.35,1e-08]
[1756464336635,96.15372755,208.36,208.35,1e-08]
[1756464337300,70.15372755,208.36,208.35,1e-08]
[1756464337496,76.20110677,208.36,208.35,1e-08]
[1756464337724,70.81372755,208.36,208.35,1e-08]
[1756464339024,70.15372755,208.36,208.35,1e-08]
[1756464339804,75.55381107,208.36,208.35,1e-08]
[1756464340018,88.9550632,208.36,208.35,0.66000001]
[1756464340213,83.55497968,208.36,208.35,0.66000001]
[1756464340414,96.13372755,208.36,208.35,1e-08]
[1756464341303,75.53381107,208.36,208.35,1e-08]
[1756464343514,62.9550632,208.36,208.35,1e-08]
[1756464343921,75.53381107,208.36,208.35,1e-08]
[1756464344315,75.53381107,208.36,208.35,0.66000001]
[1756464344624,70.13372755,208.36,208.35,0.66000001]
[1756464344822,96.13372755,208.36,208.35,0.66000001]
[1756464345031,96.09372755,208.36,208.35,0.66000001]
[1756464348028,0.06,208.36,208.35,0.66000001]
[1756464348213,0.06,208.36,208.35,13.23874788]
[1756464348620,39.04,208.37,208.35,13.23874788]
[1756464348819,39.04,208.37,208.36,0.66]
[1756464359334,4.11009094,208.39,208.36,0.66]
[1756464359522,38.98,208.38,208.36,0.66]
[1756464360725,38.98,208.38,208.36,18.03813285]
[1756464360933,38.98,208.38,208.37,0.7]
[1756464361330,39.04,208.39,208.37,0.7]
[1756464361917,39.04,208.39,208.38,12.57874787]
[1756464361918,0.06,208.39,208.38,12.57874787]
[1756464362226,0.06,208.39,208.38,13.27874787]
[1756464363142,0.06,208.39,208.38,0.7]
[1756464363448,0.06,208.39,208.38,18.07767291]
[1756464363644,0.06,208.39,208.38,5.49892504]
[1756464363841,0.06,208.39,208.38,18.07767291]
[1756464369326,0.06,208.39,208.38,0.7]
[1756464370241,0.06,208.39,208.38,5.49892504]
[1756464370428,0.06,208.39,208.38,18.07767291]
[1756464370850,0.06,208.39,208.38,0.7]
[1756464373339,0.06,208.39,208.36,4.79936882]
[1756464373534,12.63874787,208.39,208.35,0.70000001]
[1756464373737,0.06,208.39,208.36,0.7]
[1756464374046,0.06,208.39,208.37,0.7]
[1756464374554,0.06,208.39,208.35,0.70000001]
[1756464374744,0.06,208.39,208.35,13.27874788]
[1756464376335,0.06,208.39,208.35,0.70000001]
[1756464377227,0.06,208.39,208.35,13.27874788]
[1756464377556,0.06,208.39,208.35,18.07834099]
[1756464377753,0.06,208.39,208.36,13.27874787]
[1756464377935,0.06,208.39,208.37,12.57874787]
[1756464378134,0.06,208.39,208.36,13.27874787]
[1756464378653,0.06,208.39,208.35,12.57874788]
[1756464378832,0.06,208.39,208.35,0.70000001]
[1756464379033,0.06,208.39,208.36,13.27874787]
[1756464379241,0.06,208.39,208.37,0.7]
[1756464383075,0.06,208.39,208.38,13.27874787]
[1756464384947,0.06,208.39,208.38,18.07767291]
[1756464393378,0.06,208.39,208.38,20.00162891]
[1756464399463,0.06,208.39,208.38,98.50162891]
[1756464401680,0.06,208.4,208.39,13.59559401]
[1756464401885,0.06,208.42,208.41,52.17434188]
[1756464402093,0.06,208.42,208.41,131.1541653]
[1756464402272,0.06,208.42,208.41,131.34434188]
[1756464402464,0.06,208.42,208.41,133.26774188]
[1756464403067,0.06,208.42,208.41,158.43214787]
[1756464403662,0.06,208.42,208.41,176.82597612]
[1756464408000,1e-08,208.42,208.41,176.82597612]
[1756464408570,0.06,208.45,208.44,39.59559401]
[1756464408870,0.06,208.45,208.44,91.37409624]
[1756464409070,0.06,208.45,208.44,92.04409624]
[1756464409477,0.06,208.45,208.44,60.04476289]
[1756464409687,0.06,208.45,208.44,98.76476289]
[1756464409880,0.06,208.45,208.44,98.28500853]
[1756464411390,1e-08,208.45,208.44,98.28500853]
[1756464414285,1e-08,208.45,208.44,176.78500853]
[1756464427408,1e-08,208.45,208.44,138.06500853]
[1756464427711,1e-08,208.45,208.44,176.68500853]
[1756464428615,1e-08,208.45,208.44,138.06500853]
[1756464428815,1e-08,208.45,208.44,176.68500853]
[1756464431304,1e-08,208.45,208.44,172.15692981]
[1756464431505,1e-08,208.45,208.44,172.18692981]
[1756464437312,1e-08,208.45,208.44,172.17692981]
[1756464442923,1e-08,208.45,208.44,133.55692981]
[1756464443130,1e-08,208.45,208.44,172.09692981]
[1756464446824,1e-08,208.45,208.44,133.55692981]
[1756464447025,1e-08,208.45,208.44,172.09692981]
[1756464450141,1e-08,208.45,208.44,133.55692981]
[1756464450328,1e-08,208.45,208.44,172.05692981]
[1756464451140,1e-08,208.45,208.44,6.75066665]
[1756464451437,1e-08,208.45,208.44,43.32754365]
[1756464451438,0.72000001,208.45,208.44,43.32754365]
[1756464451616,1e-08,208.45,208.44,66.13356117]
[1756464452224,1e-08,208.45,208.44,68.83705517]
[1756464453332,1e-08,208.48,208.47,26.0]
[1756464453521,0.06,208.5,208.48,13.59559401]
[1756464453843,0.06,208.5,208.49,60.62590247]
[1756464454044,0.06,208.5,208.49,62.54856347]
[1756464454744,0.06,208.5,208.49,67.34495658]
[1756464454919,0.78,208.5,208.49,7.19869342]
[1756464455123,0.78,208.5,208.49,51.32706226]
[1756464456226,0.78,208.5,208.49,12.84706226]
[1756464456543,0.78,208.5,208.49,51.32706226]
[1756464456845,0.78,208.5,208.49,43.27639311]
[1756464457423,13.62687998,208.5,208.44,0.03]
[1756464457648,8.05066915,208.46,208.44,0.03]
[1756464458148,0.72,208.45,208.44,0.03]
[1756464458563,8.77066915,208.45,208.44,0.03]
[1756464458934,13.56798265,208.45,208.44,0.03]
[1756464460526,0.72,208.45,208.44,0.03]
[1756464461744,13.56798265,208.45,208.44,0.03]
[1756464461948,21.61865165,208.45,208.44,0.03]
[1756464462140,8.770669,208.45,208.44,0.03]
[1756464464044,13.5679825,208.45,208.44,0.03]
[1756464464241,21.61865165,208.45,208.44,0.03]
[1756464464443,35.21424566,208.45,208.44,0.03]
[1756464468752,73.65424566,208.45,208.44,0.03]
[1756464470032,73.65424566,208.45,208.44,1e-08]
[1756464478237,65.60357651,208.45,208.44,1e-08]
[1756464478657,73.65424566,208.45,208.44,1e-08]
[1756464482164,34.05066915,208.42,208.41,0.03]
[1756464482360,72.45066915,208.42,208.41,0.03]
[1756464482557,73.16066915,208.42,208.41,0.03]
[1756464483065,92.6807009,208.42,208.41,0.03]
[1756464483261,92.6807009,208.42,208.41,1e-08]
[1756464483461,13.59559401,208.41,208.39,0.03]
[1756464483662,8.05066915,208.39,208.38,0.03]
[1756464483855,12.8493639,208.39,208.38,0.03]
[1756464484053,13.5593639,208.39,208.38,0.03]
[1756464484255,15.4844309,208.39,208.38,0.03]
[1756464484662,47.6871075,208.39,208.38,0.03]
[1756464485184,15.4844309,208.39,208.38,0.03]
[1756464487350,37.13069406,208.39,208.38,1e-08]
[1756464487547,41.12841417,208.39,208.38,1e-08]
[1756464487872,33.07774502,208.39,208.38,1e-08]
[1756464488870,71.45774502,208.39,208.38,1e-08]
[1756464489069,67.46002491,208.39,208.38,1e-08]
[1756464492592,71.45774502,208.39,208.38,1e-08]
[1756464493063,103.66042162,208.39,208.38,1e-08]
[1756464494078,99.66270151,208.39,208.38,1e-08]
[1756464494277,103.6520155,208.39,208.38,1e-08]
[1756464495590,99.66270151,208.39,208.38,1e-08]
[1756464499310,105.04480308,208.39,208.38,1e-08]
[1756464500392,99.66270151,208.39,208.38,1e-08]
[1756464500884,72.03378328,208.39,208.38,0.72000001]
[1756464501083,66.71002491,208.39,208.38,0.72000001]
[1756464501792,66.71002491,208.39,208.38,1e-08]
[1756464502394,20.31935576,208.39,208.38,1e-08]
[1756464502689,66.71002491,208.39,208.38,1e-08]
[1756464503301,58.65935576,208.39,208.38,1e-08]
[1756464503601,66.71002491,208.39,208.38,1e-08]
[1756464505488,104.94645988,208.39,208.38,1e-08]
[1756464506092,104.23645988,208.39,208.38,1e-08]
[1756464506508,72.03378328,208.39,208.38,1e-08]
[1756464507313,72.03378328,208.39,208.38,0.72000001]
[1756464508178,72.03378328,208.39,208.38,1e-08]
[1756464509305,66.71002491,208.39,208.38,1e-08]
[1756464510004,98.91270151,208.39,208.38,1e-08]
[1756464510506,66.71002491,208.39,208.38,1e-08]
[1756464513007,98.91270151,208.39,208.38,1e-08]
[1756464514708,39.59559401,208.36,208.35,1e-08]
[1756464514895,91.29667732,208.36,208.35,1e-08]
[1756464515093,86.63626316,208.36,208.35,1e-08]
[1756464515300,91.98681619,208.36,208.35,1e-08]
[1756464515487,86.63626316,208.36,208.35,1e-08]
[1756464515684,91.98474258,208.36,208.35,1e-08]
[1756464515887,93.91036558,208.36,208.35,1e-08]
[1756464516208,88.56188616,208.36,208.35,1e-08]
[1756464516811,93.36127183,208.36,208.35,1e-08]
[1756464518613,92.67127183,208.36,208.35,1e-08]
[1756464519110,93.36127183,208.36,208.35,1e-08]
[1756464522218,101.43442419,208.36,208.35,1e-08]
[1756464523013,93.36127183,208.36,208.35,1e-08]
[1756464523328,101.43442419,208.36,208.35,1e-08]
[1756464525203,93.36127183,208.36,208.32,0.03]
[1756464525401,39.59559401,208.33,208.32,0.69]
[1756464525716,59.90626316,208.33,208.32,0.69]
[1756464525918,67.95693216,208.33,208.32,0.03]
[1756464526293,21.64626301,208.33,208.32,0.69]
[1756464526498,78.12841515,208.33,208.32,0.69]
[1756464526903,72.75700896,208.33,208.32,0.69]
[1756464527729,64.70633981,208.33,208.32,0.69]
[1756464528100,72.75700896,208.33,208.32,0.69]
[1756464530323,72.73700896,208.33,208.32,0.69]
[1756464531699,72.73700896,208.33,208.32,0.03]
[1756464531901,73.42700896,208.33,208.32,0.03]
[1756464532526,73.48700896,208.33,208.32,0.03]
[1756464532911,72.79700896,208.33,208.32,0.03]
[1756464533925,39.59559401,208.3,208.29,0.03]
[1756464534123,85.88626316,208.3,208.29,0.03]
[1756464534306,13.59559401,208.29,208.27,0.03]
[1756464534499,67.91875183,208.28,208.27,0.03]
[1756464535120,70.53493183,208.28,208.27,0.03]
[1756464535420,70.6770934,208.28,208.27,0.03]
[1756464535623,39.73775558,208.24,208.23,0.1]
[1756464535797,86.00842473,208.24,208.23,0.1]
[1756464536001,91.50057609,208.24,208.23,0.1]
[1756464536412,93.42731209,208.24,208.23,0.1]
[1756464537116,93.42731209,208.24,208.23,1e-08]
[1756464537317,97.03286142,208.24,208.23,1e-08]
[1756464539321,105.08096857,208.24,208.23,1e-08]
[1756464539828,0.14216157,208.23,208.17,0.1]
[1756464540132,51.39397406,208.18,208.17,0.1]
[1756464540342,94.39750946,208.18,208.17,0.1]
[1756464540638,94.39750946,208.18,208.17,0.81]
[1756464540853,67.85372746,208.18,208.17,0.81]
[1756464541015,106.05372746,208.18,208.17,0.81]
[1756464541704,106.05372746,208.18,208.17,0.1]
[1756464541907,67.85372746,208.18,208.17,0.1]
[1756464542128,110.06079967,208.18,208.17,0.1]
[1756464542927,106.71372746,208.18,208.17,0.1]
[1756464543536,106.05372746,208.18,208.17,0.1]
[1756464543927,106.71372746,208.18,208.17,0.1]
[1756464544131,110.71921228,208.18,208.17,0.1]
[1756464544513,106.71372746,208.18,208.17,1e-08]
[1756464544716,112.06883637,208.18,208.17,1e-08]
[1756464545422,0.14216157,208.17,208.1,0.71]
[1756464545621,39.73775558,208.11,208.1,0.71]
[1756464545836,89.59397406,208.11,208.1,0.71]
[1756464546015,0.14216157,208.06,208.0,11.65621848]
[1756464546216,0.14216157,208.06,208.01,11.65621848]
[1756464546444,0.14216157,208.04,208.01,11.65621848]
[1756464546662,38.2,208.03,208.02,0.71]
[1756464547139,51.93775558,208.03,207.86,20.0]
[1756464547345,26.0,207.96,207.92,11.65621848]
[1756464547519,26.0,207.96,207.82,4.77089432]
[1756464547520,38.2,207.95,207.93,12.36621848]
[1756464547726,38.34216157,207.95,207.94,0.71]
[1756464547923,51.93775558,207.95,207.94,0.71]
[1756464548132,63.59397406,207.95,207.94,0.71]
[1756464548323,0.14216157,207.94,207.85,11.65621848]
[1756464548519,26.0,207.89,207.77,16.84547644]
[1756464548748,14.468639,207.95,207.88,11.65621848]
[1756464549057,38.34216157,207.94,207.89,0.71]
[1756464549422,38.34216157,207.94,207.91,11.65621848]
[1756464549624,0.14216157,207.94,207.93,11.65621848]
[1756464549958,38.2,207.96,207.93,12.36621848]
[1756464550153,38.2,207.96,207.94,0.71]
[1756464550446,0.14216157,207.95,207.93,11.65621848]
[1756464550634,38.2,207.94,207.93,11.65621848]
[1756464550834,37.656218,208.0,207.93,11.65621848]
[1756464551041,38.2,207.99,207.98,11.65621848]
[1756464551223,38.2,207.99,207.98,12.36621848]
[1756464552250,38.2,207.99,207.98,0.71]
[1756464552543,0.14216157,208.02,207.98,12.36621848]
[1756464552743,26.0,208.02,208.01,11.65621848]
[1756464552927,0.14216157,208.01,208.0,11.65621848]
[1756464553240,0.14216157,208.01,207.93,0.03]
[1756464553241,13.73775558,208.01,207.93,0.03]
[1756464553551,13.73775558,208.01,207.96,11.65621848]
[1756464553552,38.2,208.0,207.96,11.65621848]
[1756464553736,38.2,208.0,207.97,0.71]
[1756464554336,38.2,208.0,207.94,11.65621848]
[1756464554537,43.00788316,208.0,207.95,12.36621848]
[1756464554730,43.00788316,208.0,207.96,0.71]
[1756464555131,43.00788316,208.0,207.97,0.71]
[1756464555352,43.00788316,208.0,207.93,0.03]
[1756464555540,43.00788316,208.0,207.97,0.71]
[1756464555541,26.0,207.98,207.97,0.71]
[1756464555742,26.0,207.98,207.93,0.03]
[1756464555743,0.14216157,207.97,207.93,0.03]
[1756464556054,38.2,207.96,207.94,0.71]
[1756464556438,0.14216157,207.95,207.94,0.71]
[1756464556638,4.95100985,207.95,207.93,0.03]
[1756464556835,38.34216157,207.94,207.93,0.03]
[1756464557633,38.34216157,207.94,207.93,0.74]
[1756464557832,38.34216157,207.94,207.93,0.03]
[1756464558252,63.59397406,207.94,207.93,0.03]
[1756464558449,80.7492726,207.94,207.93,0.03]
[1756464559033,68.43305412,207.94,207.93,0.03]
[1756464559356,69.09305412,207.94,207.93,0.03]
[1756464559557,80.7492726,207.94,207.93,0.03]
[1756464561956,80.60711103,207.94,207.93,0.03]
[1756464563942,80.58711103,207.94,207.93,0.03]
[1756464564957,80.7292726,207.94,207.93,0.03]
[1756464565158,51.39397406,207.91,207.9,0.03]
[1756464565345,13.59559401,207.86,207.83,0.71]
[1756464565659,62.04179737,207.94,207.85,11.65621848]
[1756464565660,4.80907954,207.94,207.85,11.65621848]
[1756464565844,26.0,207.9,207.89,11.65621848]
[1756464566044,13.59559401,207.94,207.89,0.71]
[1756464566242,38.2,207.93,207.89,12.36621848]
[1756464566446,38.2,207.92,207.91,11.65621848]
[1756464566778,38.2,207.92,207.91,0.71]
[1756464567242,38.34216157,207.92,207.91,0.71]
[1756464568161,0.14216157,207.91,207.9,0.71]
[1756464568569,0.14216157,207.91,207.87,0.71]
[1756464568745,43.00959266,207.92,207.83,0.71]
[1756464568746,11.65621848,207.88,207.83,0.71]
[1756464568945,38.32216157,207.87,207.83,0.71]
[1756464569159,49.97838005,207.87,207.83,0.71]
[1756464569663,49.97838005,207.87,207.81,11.65621848]
[1756464569664,49.97838005,207.87,207.84,0.71]
[1756464569960,43.13303214,207.87,207.81,11.65621848]
[1756464570165,11.656218,207.88,207.85,0.71]
[1756464570345,11.656218,207.88,207.87,11.65621848]
[1756464570663,38.18,207.89,207.87,12.32621848]
[1756464570870,38.18,207.89,207.87,0.67]
[1756464571049,0.14216157,207.88,207.87,0.67]
[1756464571242,0.14216157,207.88,207.87,0.7]
[1756464571753,26.0,207.9,207.87,12.35621848]
[1756464571942,38.18,207.91,207.89,11.65621848]
[1756464572146,38.18,207.91,207.9,12.32621848]
[1756464572350,25.62803301,207.95,207.9,12.32621848]
[1756464572351,12.032439,207.95,207.9,12.32621848]
[1756464572546,4.80699899,208.03,207.94,11.65621848]
[1756464572753,26.0,207.98,207.97,11.65621848]
[1756464572968,38.18,207.98,207.97,12.32621848]
[1756464573285,38.18,207.98,207.97,0.67]
[1756464573571,47.01621848,208.04,207.97,12.32621848]
[1756464573572,38.18,208.0,207.97,12.32621848]
[1756464573753,38.18,208.0,207.99,11.65621848]
[1756464573948,38.18,208.0,207.99,0.67]
[1756464574172,41.34774414,208.0,207.95,12.32621848]
[1756464574357,38.18,208.0,207.96,0.67]
[1756464574548,38.18,208.0,207.97,11.65621848]
[1756464574748,38.18,208.0,207.98,0.67]
[1756464575173,0.14216157,207.99,207.98,11.65621848]
[1756464575473,38.32216157,207.99,207.98,11.65621848]
[1756464575771,38.32216157,207.99,207.98,12.32621848]
[1756464576358,38.32216157,207.99,207.89,4.81023618]
[1756464576564,54.78633406,207.99,207.9,0.67]
[1756464576865,0.14216157,207.97,207.92,11.65621848]
[1756464577055,0.14216157,207.95,207.91,11.65621848]
[1756464577255,3.31683959,207.95,207.91,0.67]
[1756464577685,3.31683959,207.95,207.87,0.03]
[1756464577686,26.0,207.93,207.87,0.03]
[1756464577892,64.18,207.93,207.89,0.67]
[1756464578193,3.18008627,207.92,207.89,0.67]
[1756464579155,3.18008627,207.92,207.89,12.32621848]
[1756464579556,3.18008627,207.92,207.9,0.67]
[1756464580076,3.18008627,207.92,207.89,11.65621848]
[1756464580465,3.18008627,207.92,207.87,4.8405998]
[1756464580466,3.18008627,207.92,207.9,12.32621848]
[1756464580670,3.18008627,207.92,207.91,12.32621848]
[1756464580864,38.16,207.93,207.91,12.32621848]
[1756464581065,38.16,207.93,207.92,0.67]
[1756464581279,41.34618778,207.93,207.92,12.32621848]
[1756464581789,41.34618778,207.93,207.92,0.67]
[1756464582093,41.34618778,207.93,207.9,0.67]
[1756464582278,3.18618778,207.92,207.9,0.67]
[1756464582475,3.18618778,207.92,207.88,0.67]